Cogmind - Beta 13 @@@ ROGUE MODE // 2024.04.30 @ 22:15:24 Player: BionicBot Result: Destroyed by S-27 Virus with Autogun Performance ------------- Evolutions (3) 1500 Regions Visited (4) 800 Robots Destroyed (74) 370 Value Destroyed (1941) 1941 Prototype IDs (11) 220 Alien Tech Used (0) 0 Bonus (0) 0 TOTAL SCORE: 4831 Bonus ------- None Cogmind --------- Core Integrity 0/700 Matter 300/300 Energy 100/100 System Corruption 4% Temperature Cool (0) Movement Core (50) Location -7/Factory Parts ------- > --- POWER (1) -------- (None) > --- PROPULSION (5) --- (None) > --- UTILITY (5) ------ Visual Processing Unit Improved Signal Interpreter Improved Melee Analysis Suite Improved Melee Analysis Suite > --- WEAPON (2) ------- Chainsword > --- INVENTORY (5) ---- Improved Terrain Scan Processor Transmission Jammer ECM Suite Remote Datajack Chainsword Peak State ------------ > --- POWER ------------ Micro Nuclear Core > --- PROPULSION ------- Airjet Aerolev Unit Gravmag System Improved Airjet > --- UTILITY ---------- Small Storage Unit Visual Processing Unit Improved Signal Interpreter Improved Melee Analysis Suite Improved Melee Analysis Suite > --- WEAPON ----------- Chainsword Chainsword > --- INVENTORY -------- Nuclear Core Trap Scanner Improved Terrain Scan Processor Transmission Jammer ECM Suite Authchip [R/Combat] Remote Datajack [Rating: 44] Favorites ----------- Power Light Nuclear Core Engine Cooled Ion Engine Power Core Light Nuclear Core Propulsion Aluminum Leg Leg Aluminum Leg Wheel Compact Wheel Hover Unit Gravmag System Flight Unit Cesium-ion Thruster Utility Visual Processing Unit Device Improved Sensor Array Storage Small Storage Unit Processor Visual Processing Unit Hackware Hacking Suite Weapon Katana Energy Gun Medium Laser Energy Cannon Particle Cannon Ballistic Gun Assault Rifle Ballistic Cannon Light Cannon Slashing Weapon Katana Build | -11 -10 -9 -8 -7 ------- Run | Yrd Mat Mat Mat Fac Slots Evolved 6 | . . 2 2 2 Power . | . . . . . Propulsion 3 | . . 2 . 1 Utility 3 | . . . 2 1 Weapon . | . . . . . Parts Attached 87 | 6 10 28 22 21 Power 16 | 1 2 7 3 3 Engine 7 | 1 . 6 . . Core 9 | . 2 1 3 3 Reactor . | . . . . . Propulsion 34 | 2 2 14 8 8 Treads . | . . . . . Leg 11 | 2 2 3 4 . Wheel 3 | . . . . 3 Hover 5 | . . . . 5 Flight 15 | . . 11 4 . Utility 19 | 1 3 . 8 7 Device 5 | . . . 4 1 Storage 4 | 1 1 . 1 1 Processor 9 | . 2 . 2 5 Hackware 1 | . . . 1 . Protection . | . . . . . Artifact . | . . . . . Weapon 18 | 2 3 7 3 3 Energy Gun 2 | 1 . 1 . . Energy Cannon 4 | . . 4 . . Ballistic Gun 2 | 1 . 1 . . Ballistic Cannon 4 | . 3 1 . . Launcher . | . . . . . Special Weapon . | . . . . . Impact Weapon . | . . . . . Slashing Weapon 6 | . . . 3 3 Piercing Weapon . | . . . . . Special Melee Weapon . | . . . . . Unidentified Prototypes 6 | . . 4 . 2 Parts Lost 27 | . . 5 7 15 Power 5 | . . 2 . 3 Propulsion 15 | . . 2 4 9 Utility 3 | . . . 2 1 Weapon 4 | . . 1 1 2 Highest Loss Streak 6 | . . 2 6 6 To Critical Strikes 1 | . . . . 1 Average Slot Usage (%) 88 | . 96 91 92 71 Engine 4 | . 1 5 8 . Core 5 | . 11 5 . 5 Leg 11 | . 28 15 3 . Hover 2 | . . . . 10 Flight 14 | . . 21 26 8 Device 3 | . . . 10 2 Storage 7 | . 14 9 . 5 Processor 16 | . 11 11 18 24 Hackware 1 | . . . 4 . Energy Cannon 1 | . . 7 . . Ballistic Cannon 10 | . 27 13 . . Slashing Weapon 8 | . . . 17 13 Naked Turns . | . . . . . Heaviest Build 25 | 14 21 25 18 18 Greatest Support 45 | 20 20 40 45 34 Greatest Overweight (x) 6 | 1 1 6 3 5 Average Overweight (x) . | . . . . . Largest Inventory Capacity 10 | 8 10 10 8 8 Average Capacity 7 | 7 9 9 5 7 Most Carried 10 | . 10 10 8 8 Average Carried 7 | . 8 8 5 7 Final Capacity 10 | 8 10 5 8 5 Final Carried 10 | . 10 5 7 5 Class Distribution -------------------- 35% | Scavenger-Mutant 16% | Mutant 15% | Scavenger-Scout 11% | Scavenger-Assassin 8% | Gladiator 6% | Scout 4% | Sprinter Dominant Class ---------------- Scavenger-Mutant | -10/Materials Scavenger-Mutant | -9/Materials Scavenger-Assassin | -8/Materials Gladiator | -7/Factory Resources | -11 -10 -9 -8 -7 ----------- Run | Yrd Mat Mat Mat Fac Matter Collected 1804 | 106 631 666 225 176 Remotely . | . . . . . Salvage Created 2500 | . 546 759 685 510 Parts 150 | . 39 39 44 28 Haulers Intercepted 6 | . 1 2 2 1 Recyclers Shooed 1 | . 1 . . . Parts Field Recycled . | . . . . . Retrieved Matter . | . . . . . Parts Self-Destructed . | . . . . . Prevented . | . . . . . Kills | -11 -10 -9 -8 -7 ------- Run | Yrd Mat Mat Mat Fac Combat Hostiles Destroyed 43 | . 10 16 11 6 Melee 17 | . . . 11 6 Cannons 26 | . 10 16 . . Classes Destroyed 12 | . 7 3 1 1 Worker 4 | . . 1 2 1 Builder 2 | . 2 . . . Hauler 6 | . 1 2 2 1 Recycler 5 | . 3 1 . 1 Operator 3 | . 1 1 . 1 Watcher 11 | . 3 2 4 2 Swarmer 8 | . 3 1 4 . Grunt 21 | . 7 8 4 2 Brawler 1 | . . 1 . . Sentry 10 | . . 6 2 2 Hunter 1 | . . . 1 . Programmer 2 | . . . . 2 Best Kill Streak 8 | . 8 5 6 4 Combat Bots Only 7 | . 7 5 4 4 Max Kills in Single Turn 2 | . 1 2 1 1 Gunslinging . | . . . . . Exploded . | . . . . . Melee 1 | . . . 1 1 Uniques/NPCs Destroyed . | . . . . . Combat | -11 -10 -9 -8 -7 -------- Run | Yrd Mat Mat Mat Fac Hostile Shots Fired 420 | . 63 75 67 215 Missed 151 | . 21 18 26 86 Damage Taken 3296 | . 417 784 525 1570 Core 1107 | . 86 199 107 715 Absorbed by Shields . | . . . . . Regen/Repaired (Parts) 42 | . 24 18 . . Core Remaining (%) 73 | 100 65 50 80 . Volleys Fired 115 | . 57 58 . . Largest 2 | . 2 2 . . Hottest 103 | . 70 103 . . Shots Fired 221 | . 114 107 . . Gun 4 | . . 4 . . Cannon 217 | . 114 103 . . Launcher . | . . . . . Special . | . . . . . Kinetic 196 | . 114 82 . . Thermal 25 | . . 25 . . Explosive . | . . . . . Electromagnetic . | . . . . . Robot Hit Streak 18 | . 5 18 . . Robot Miss Streak 6 | . 6 6 . . Penetration Max . | . . . . . Secondary Targets . | . . . . . Shots Hit Robots 198 | . 52 65 45 36 Core Hits 82 | . 22 29 19 12 Critical Kills . | . . . . . Critical Parts Destroyed . | . . . . . Critical Strikes 12 | . . 2 8 2 Blast 2 | . . 2 . . Sever 10 | . . . 8 2 Melee Attacks 131 | . . . 73 58 Impact . | . . . . . Slashing 131 | . . . 73 58 Piercing . | . . . . . Sneak Attacks 8 | . . . 5 3 Combat Hostiles 1 | . . . 1 . Follow-up Attacks 16 | . . . 9 7 Damage Inflicted 5252 | . 935 1271 1640 1406 Guns 43 | . . 43 . . Cannons 2139 | . 925 1214 . . Explosions . | . . . . . Melee 3040 | . . . 1640 1400 Ramming 30 | . 10 14 . 6 Kinetic 1846 | . 925 921 . . Thermal 336 | . . 336 . . Explosive . | . . . . . Electromagnetic . | . . . . . Impact . | . . . . . Slashing 3040 | . . . 1640 1400 Piercing . | . . . . . Highest Corruption 4 | . . 3 . 4 Average Corruption 2 | . . 3 . 1 Corruption Purged . | . . . . . Corruption Blocked . | . . . . . Effects 21 | . . 14 . 7 Message Errors 6 | . . 4 . 2 Matter Fused 3 | . . 1 . 2 Heat Flow Errors 2 | . . 2 . . Energy Discharges 3 | . . 3 . . Data Loss (minor) 5 | . . 3 . 2 Data Loss (major) 1 | . . . . 1 Weapon Failures 1 | . . 1 . . Overload Shots . | . . . . . Overflow Damage 290 | . . . 126 164 Projectiles . | . . . . . Explosions . | . . . . . Melee 290 | . . . 126 164 Knockbacks 10 | . 7 3 . . Impact . | . . . . . Kinetic 10 | . 7 3 . . Secondary . | . . . . . Self-Inflicted Damage 9 | . . 6 . 3 Shots . | . . . . . Rammed 3 | . . 2 . 1 Targets Rammed 4 | . 1 2 . 1 Kicked 1 | . 1 . . . Crushed . | . . . . . Highest Temperature 445 | . 262 445 10 4 Average Temperature 75 | . 76 74 5 4 Received Heat Transfer 897 | . 174 270 198 255 Effects 1 | . . 1 . . Damage (minor) 1 | . . 1 . . Siege Activations . | . . . . . Robots Corrupted . | . . . . . Combat Hostiles . | . . . . . Parts Fried . | . . . . . Impact Corruptions . | . . . . . Robots Melted . | . . . . . Combat Hostiles . | . . . . . Parts Melted . | . . . . . Heat Transferred 655 | . . 655 . . Parts Sabotaged . | . . . . . Parts Stolen . | . . . . . Parts Stripped . | . . . . . Power Chain Reactions . | . . . . . Alert | -11 -10 -9 -8 -7 ------- Run | Yrd Mat Mat Mat Fac Peak Influence 460 | . 363 328 304 460 Initial 137 | . . . 92 137 Average 160 | . 121 194 195 141 Maximum Alert Level 2 | . 1 1 1 2 Low Security (%) 66 | 100 80 43 53 84 Level 1 31 | . 19 56 46 9 Level 2 1 | . . . . 6 Level 3 . | . . . . . Level 4 . | . . . . . Level 5 . | . . . . . High Security . | . . . . . Max Security . | . . . . . Squads Dispatched 14 | . 2 3 5 4 Investigation 5 | . . 2 2 1 Extermination 2 | . . . . 2 Reinforcement 7 | . 2 1 3 1 Assault . | . . . . . Garrison . | . . . . . Intercept . | . . . . . Searches Triggered . | . . . . . Construction Impeded . | . . . . . Haulers Reinforced . | . . . . . Active Scanning Responses . | . . . . . Cargo Convoy Interrupts 1 | . . . . 1 Stealth | -11 -10 -9 -8 -7 --------- Run | Yrd Mat Mat Mat Fac Distress Signals 6 | . 2 3 . 1 Communications Jammed . | . . . . . Distress Signals . | . . . . . Times Spotted 114 | . 18 22 30 44 Peak Tracking Total 14 | . 7 6 5 14 Tactical Retreats 20 | . 1 2 7 10 Traps | -11 -10 -9 -8 -7 ------- Run | Yrd Mat Mat Mat Fac Traps Triggered 2 | . . . 1 1 Indirectly . | . . . . . Trap Hack Attempts . | . . . . . Triggered . | . . . . . Disarmed . | . . . . . Reprogrammed . | . . . . . Reused . | . . . . . Traps Extracted . | . . . . . Installed . | . . . . . Triggered . | . . . . . Machines | -11 -10 -9 -8 -7 ---------- Run | Yrd Mat Mat Mat Fac Machines Disabled 3 | . 2 1 . . Max in Single Turn 1 | . 1 1 . . Machines Repaired . | . . . . . Machines Dismantled . | . . . . . Machines Sabotaged . | . . . . . Overloaded Fab Kills . | . . . . . Hacking | -11 -10 -9 -8 -7 --------- Run | Yrd Mat Mat Mat Fac Machines Accessed 16 | . 3 6 4 3 Terminals 9 | . 2 3 2 2 Fabricators . | . . . . . Repair Stations 2 | . 1 1 . . Recycling Units 2 | . . . 1 1 Scanalyzers 3 | . . 2 1 . Garrison Access . | . . . . . Total Hacks 52 | . 7 25 16 4 Successful 31 | . 5 18 7 1 Failed 21 | . 2 7 9 3 Catastrophic 3 | . . 2 1 . Database Lockouts . | . . . . . Manual . | . . . . . Terminals 22 | . 4 8 8 2 Fabricators . | . . . . . Repair Stations 6 | . 3 3 . . Recycling Units 7 | . . . 5 2 Scanalyzers 17 | . . 14 3 . Garrison Access . | . . . . . Terminal Hacks 7 | . 3 2 1 1 Prototype ID Bank 2 | . . 1 1 . Open DSF 1 | . . . . 1 Unreport Threat 1 | . 1 . . . Locate Traps 2 | . 1 1 . . Zone Layout 1 | . 1 . . . Fabricator Hacks . | . . . . . Repair Station Hacks 4 | . 2 2 . . Scan Component 2 | . 1 1 . . Repair 2 | . 1 1 . . Recycling Unit Hacks 3 | . . . 3 . Report Inventory 1 | . . . 1 . Retrieve Components 2 | . . . 2 . Scanalyzer 17 | . . 14 3 . Insert Component 9 | . . 7 2 . Analyze 8 | . . 7 1 . Garrison Access Hacks . | . . . . . Unauthorized Hacks . | . . . . . Terminals . | . . . . . Fabricators . | . . . . . Repair Stations . | . . . . . Recycling Units . | . . . . . Scanalyzers . | . . . . . Garrison Access . | . . . . . Data Cores Recovered 1 | . 1 . . . Used . | . . . . . Hacking Detections 14 | . 2 6 3 3 Full Trace Events 6 | . 1 4 1 . Feedback Events . | . . . . . Feedback Blocked . | . . . . . Robot Schematics Acquired . | . . . . . Robots Built . | . . . . . Authchips . | . . . . . Time . | . . . . . Total Robot Build Rating . | . . . . . Part Schematics Acquired 7 | . . 6 1 . Parts Built . | . . . . . Authchips . | . . . . . Time . | . . . . . Total Part Build Rating . | . . . . . Parts Repaired 2 | . 1 1 . . Time 76 | . 38 38 . . Parts Recycled . | . . . . . Recycled Matter . | . . . . . Retrieved Matter . | . . . . . Retrieved Components 20 | . . . 20 . Parts Scanalyzed 8 | . . 7 1 . Part Schematics Acquired 7 | . . 6 1 . Parts Damaged 1 | . . 1 . . Bothacking | -11 -10 -9 -8 -7 ------------ Run | Yrd Mat Mat Mat Fac Used RIF Installer . | . . . . . Robots Hacked . | . . . . . Non-combat . | . . . . . Combat . | . . . . . Robot Hacks Applied . | . . . . . Relay Couplers Released . | . . . . . Fabnet Peak Effective % . | . . . . . Robots Rewired . | . . . . . Allies Hacked . | . . . . . Hacks Repelled . | . . . . . Allies | -11 -10 -9 -8 -7 -------- Run | Yrd Mat Mat Mat Fac Total Allies . | . . . . . Largest Group . | . . . . . Highest-Rated Group . | . . . . . Highest-Rated Ally . | . . . . . Total Orders . | . . . . . Ally Attacks . | . . . . . Total Damage . | . . . . . Kills . | . . . . . Allies Corrupted . | . . . . . Allies Melted . | . . . . . Intel | -11 -10 -9 -8 -7 ------- Run | Yrd Mat Mat Mat Fac Robot Analysis Total . | . . . . . Derelict Logs Recovered . | . . . . . Drone Launches . | . . . . . Drone Recoveries . | . . . . . Exploration | -11 -10 -9 -8 -7 ------------- Run | Yrd Mat Mat Mat Fac Turns Passed 4829 | 53 1309 898 1415 1154 Spaces Moved 4627 | 39 655 608 1858 1467 Core 305 | 6 . 1 4 294 Treads . | . . . . . Legs 1021 | 33 655 193 140 . Wheels 14 | . . . . 14 Hover 838 | . . . . 838 Flight 2449 | . . 414 1714 321 Fastest Speed 26 | 50 120 26 26 31 Average Speed 68 | 111 162 87 43 49 Slowest Speed 355 | 120 190 355 280 300 Overloaded Moves . | . . . . . Propulsion Burnouts . | . . . . . Robots Hopped 5 | . . 5 . . Cave-ins Triggered . | . . . . . Exploration Rate (%) 46 | 3 84 64 51 31 Regions Visited 4 Branch Regions . Pre-discovered Areas . | . . . . . Known Exits Taken 1 | . . . 1 . Unknown Exits Taken 3 | 1 1 1 . . Scrap Searched . | . . . . . Spaces Dug 9 | . . . 5 4 Terrain Destroyed 9 | . . . 5 4 Melee 9 | . . . 5 4 Projectile . | . . . . . AOE . | . . . . . Terrain Rammed . | . . . . . Walls Destroyed . | . . . . . Machines Disabled . | . . . . . Actions | -11 -10 -9 -8 -7 --------- Run | Yrd Mat Mat Mat Fac Total 5889 | 45 788 866 2364 1826 Wait 852 | 1 41 141 406 263 Move 4613 | 38 654 597 1857 1467 Hop 5 | . . 5 . . Pick Up 29 | . 14 3 6 6 Fast Attach 57 | 6 4 18 14 15 Attach 20 | . 1 9 5 5 Detach 25 | . 2 11 5 7 Swap 11 | . 5 2 3 1 Drop 51 | . 9 20 10 12 Fire 115 | . 57 58 . . Melee 107 | . . . 58 49 Ram 3 | . . 2 . 1 Kick 1 | . 1 . . . Crush . | . . . . . Escape Stasis . | . . . . . Rewire . | . . . . . Trap . | . . . . . Miscellaneous . | . . . . . Route ------- -11/Scrapyard -10/Materials (discovered 2 exits: *Mat / [*Min]) -9/Materials (discovered 4 exits: *Mat / [*Min] / [*Sto x2]) -8/Materials -7/Factory (discovered 1 exit: *Low) History --------- Turn | Location | Event 5 | -11/Scrapyard | Discovered new exit (range 15) 54 | -11/Scrapyard | Entered Materials 216 | -10/Materials | Destroyed 7 combat bots 308 | -10/Materials | Build established: Mutant 491 | -10/Materials | Discovered new exit (range 18) 626 | -10/Materials | Build established: Scavenger-Mutant 1090 | -10/Materials | Discovered new exit (range 17) 1185 | -10/Materials | Repaired Lgt. Nuclear Core 1363 | -10/Materials | Entered another Materials area 1363 | -9/Materials | Evolved 2 slots: Propulsion x2 1692 | -9/Materials | Discovered new exit (range 10) 1834 | -9/Materials | Discovered new exit (range 18) 1867 | -9/Materials | Discovered new exit (range 13) 2175 | -9/Materials | Discovered new exit (range 18) 2240 | -9/Materials | Repaired Cesium-ion Thruster 2261 | -9/Materials | Entered another Materials area 2261 | -8/Materials | Evolved 2 slots: Utility x2 2563 | -8/Materials | Build established: Scout 2873 | -8/Materials | Build established: Scavenger-Scout 3066 | -8/Materials | Lost 6 parts (4n2u) 3413 | -8/Materials | Build established: Scavenger-Assassin 3543 | -8/Materials | Discovered new exit (range 12) 3661 | -8/Materials | Identified exit to Factory 3676 | -8/Materials | Entered Factory 3676 | -7/Factory | Evolved 2 slots: Propulsion x1, Utility x1 3949 | -7/Factory | Build established: Scavenger-Scout 4067 | -7/Factory | Lost 6 parts (1p3n1u1w) 4122 | -7/Factory | Discovered new exit (range 18) 4232 | -7/Factory | Core integrity fell below 50% 4492 | -7/Factory | Build established: Gladiator 4510 | -7/Factory | Cargo convoy interrupted 4588 | -7/Factory | Lost 3 parts (1p2n) 4653 | -7/Factory | Core integrity fell below 20% 4669 | -7/Factory | Lost 3 parts (2n1w) 4692 | -7/Factory | Identified exit to Lower Caves 4830 | -7/Factory | Destroyed by S-27 Virus with Autogun Last Messages --------------- 04642_ Dropped Com. Wheel. 04657_ Dropped Trap Scanner. 04657_ Penetrated by Slug. 04658_ Dropped Com. Wheel. 04658_ Slug penetrates Wall. 04658_ Dropped Authchip [R/Combat]. 04659_ Dropped Sml. Storage Unit. 04665_ 04B>/SLTYQB&XQ1,UZPO= 04680_ System corrupted: Matter fused (-5). 04692_ EXIT=IDENTIFIED: LOWER CAVES 04709_ Destroyed Imp. Hover Unit. 04755_ W-25 Informer destroyed. 04757_ Acquired 15 matter. 04760_ ALERT: Rogue bot located, Programmers report to Factory Zone 3X. 04769_ K-01 Serf cleans the Megafabricator. 04776_ HS1GFKBUJA9VCNIOP2AHBKUVSJT1C3O,|MTNC 04778_ K-01 Serf cleans the Megafabricator. 04787_ Connecting with DSF Access... 04822_ System corrupted: Component data lost. 04826_ S-27 Virus destroyed. Map ----- +----------------------------------------------------+ | | | | | | | | | | | | | | | ????????#########????????????????????????????????? | | ????????# #????????????????????????????????? | | ????????# [! #????????????????????????????????? | | #####???# !! #????????????????????????????????? | | #???# !! #????????????????????????????????? | | #????? ???????????? ???????????????????? | | ########+######## """ ????????????????????? | | / """ ????????????????????? | | ###### """ ????????????????????? | | #??????????? ???????????????????? | | """"""" #????????????#+###????????????????? | | """"""" #??????????? #????????????????? | | """"""" ############ #????????????????? | | """"""" #????????????????? | | #????????????????? | | #????????????????? | | ######### #????????????????? | | #########;## #????????????????? | | # ## @#?? #????????????????? | | #+######### ## ! =#???? #????????????????? | | ??????# ## ss#??????????????????????? | | ????# ## """ """[+??????????????????????? | | ??# ## """ """ #??????????????????????? | | "" "" ## ## """ """ #??????????????????????? | | "" "" ## ## #??????????????????????? | | """ """ ## ## #??????????????????????? | | """ """ ## ############??????????????????????? | | """ """? ## ##??????????? ???????????????????? | | ?? ???## T#??????????? ?????????????????? | | ?? ! ????# #?????????? ?????????????????? | | ??? ???# ##?????????? ?????????????????? | | ??? ????# #???######## ?????????????????? | | ###+###???# #???# ?????????????????? | | ???# #???# ??????????????????? | | #### ##### ???????????????????? | | ????????????????????? | | ????????????????????? | | """"""""" """"""""" #??????????????????????? | | ??""""""" """"""""" #??????????????????????? | | ?"""""""" """"""""" #??????????????????????? | | """"""""" """"""""" #??????????????????????? | | """"""""" """"""""" #??????????????????????? | | """"""""" """"""""" / #??????????????????????? | +----------------------------------------------------+ Best States ------------- Heat Dissipation 41 Energy Generation 15 Energy Capacity 280 Matter Stores 300 Matter Capacity 300 Sight Range 18 Robot Scan Range 15 Terrain Scan Density 110 Evasion (%) 64 Melee Accuracy 12 Offensive Hacking 10 Authchip Count 2 Item Schematics ----------------- Flight Unit | -9/Materials | Scanalyzed Sensor Array | -9/Materials | Scanalyzed Hacking Suite | -9/Materials | Scanalyzed Aluminum Leg | -9/Materials | Scanalyzed Lgt. Cannon | -9/Materials | Scanalyzed Ion Engine | -9/Materials | Scanalyzed Katana | -8/Materials | Scanalyzed Robot Schematics ------------------ None Fabricated ------------ Nothing Alien Tech Used ----------------- None Achievements -------------- None Challenges ------------ None Game ------ Seed FortressSuspensionLance Manual? 0 Play Time 01:31:18 Cumulative 20.4 hours Start 2024.04.30 @ 20:09:29 End 2024.04.30 @ 22:15:24 Sessions 1 Manual Loads 0 Difficulty Rogue Special Mode None Game No. 16 Rogue 16 Adventurer 0 Explorer 0 Win Type - Total 0 Types 0/0/0/0/0/0/0/0/0 Lore% 4 Gallery% 21 Achievement% 17 Wizard Run 0 Options --------- Layout 0 ASCII 0 Keyboard 1 Movement Numpad Keybinds 0 Fullscreen 2 Font 18/SmallcapsGlow Map View 76x50 Zoom Use 0% Tactical HUD 1 Map Filters NONE Filters NONE Steam 1 RUN: 8ac3f357-3374-4120-99ec-422ea2f3161c